fUSD/lending_fUSD_20250826
["ID","MTS","AMOUNT","RATE_DAILY","PERIOD"]
[381435869,1756197051619,-319.0,0.0002603,2]
[381435870,1756197051628,-35145.8,0.000261,2]
[381435871,1756197051638,-2047.31,0.000261,7]
[381435872,1756197051647,-42977.78,0.000261,7]
[381435873,1756197051657,-500.0,0.0002627,2]
[381435874,1756197051668,-1000.0,0.0002627,2]
[381435875,1756197051678,-33131.04418591,0.00026293,5]
[381435876,1756197051687,-1600.0,0.00026298,2]
[381435877,1756197051696,-3000.0,0.00026298,2]
[381435878,1756197051706,-715.37,0.000263,7]
[381435879,1756197051715,-151.33083045,0.00026349,2]
[381435880,1756197051725,-26872.21858646,0.000264,2]
[381435881,1756197051734,-200.841902,0.000264,2]
[381435882,1756197051743,-359.76179104,0.00026427,2]
[381435883,1756197051753,-287.61899177,0.00026427,2]
[381435884,1756197051763,-46834.75157463,0.000265,2]
[381435885,1756197051772,-2000.0,0.0002652,2]
[381435886,1756197051785,-5000.0,0.00026521,2]
[381435887,1756197051795,-150.0,0.00026547,2]
[381435888,1756197051807,-600.0,0.00026548,2]
[381435889,1756197051817,-771.0,0.00026625,2]
[381435890,1756197051827,-150.0,0.0002663,2]
[381435891,1756197051837,-352.86,0.00026676,2]
[381435892,1756197051847,-491.80451806,0.0002668,2]
[381435893,1756197051856,-500.0,0.00026763,2]
[381435894,1756197051866,-771.0,0.00026772,2]
[381435895,1756197051876,-1000.0,0.00026807,2]
[381435896,1756197051885,-213.0,0.0002685,2]
[381435897,1756197051894,-319.0,0.0002685,2]
[381435898,1756197051904,-500.0,0.0002697,2]
[381435899,1756197051913,-1000.0,0.0002697,2]
[381435900,1756197051923,-563.54231776,0.00026973,2]
[381435901,1756197051932,-500.0,0.00026973,2]
[381435902,1756197051942,-500.0,0.00026973,2]
[381435903,1756197051951,-33131.04418591,0.0002699,6]
[381435904,1756197051961,-300.0,0.00026999,10]
[381435905,1756197051971,-300.0,0.00026999,10]
[381435906,1756197051980,-557.81952256,0.00026999,2]
[381435907,1756197051989,-300.0,0.00026999,10]
[381435908,1756197051998,-500.0,0.00026999,2]
[381435909,1756197052008,-399.48,0.00027,7]
[381435910,1756197052018,-300.0,0.00027,2]
[381435911,1756197052027,-631.15,0.00027,7]
[381435912,1756197052037,-150.0,0.00027,4]
[381435913,1756197052046,-150.0,0.00027,4]
[381435914,1756197052184,-150.0,0.00027,4]
[381435915,1756197052194,-150.0,0.00027,4]
[381435916,1756197052202,-150.0,0.00027,4]
[381435917,1756197052211,-153.83542786,0.00027,4]
[381435918,1756197052220,-151.44852476,0.00027,4]
[381435919,1756197052231,-130390.54448686,0.00027,3]
[381435920,1756197052240,-153.87584645,0.00027,4]
[381435921,1756197052250,-152.00112268,0.00027,4]
[381435922,1756197052259,-150.0,0.00027,4]
[381435923,1756197052268,-452861.35004796,0.00027,2]
[381435924,1756197052277,-693.0,0.00027,7]
[381435925,1756197052286,-250.0,0.00027,2]
[381435926,1756197052295,-1923.23172006,0.00027,14]
[381435927,1756197052307,-458.7662338,0.00027,3]
[381435928,1756197052316,-20895.91569959,0.00027,2]
[381435929,1756197052325,-1011.08413419,0.00027,2]
[381435930,1756197052335,-3039.4336872,0.00027,2]
[381435931,1756197052344,-452.08897504,0.00027,30]
[381435932,1756197052354,-300.0,0.00027,2]
[381435933,1756197052363,-3231.33,0.00027,7]
[381435934,1756197052372,-151.0,0.00027,7]
[381435935,1756197052381,-151.0,0.00027,7]
[381435936,1756197052390,-151.0,0.00027,7]
[381435937,1756197052400,-152.128389,0.00027,7]
[381435938,1756197052409,-151.0,0.00027,7]
[381435939,1756197052418,-151.0,0.00027,7]
[381435940,1756197052427,-151.0,0.00027,7]
[381435941,1756197052437,-151.0,0.00027,7]
[381435942,1756197052447,-151.0,0.00027,7]
[381435943,1756197052455,-169.83308,0.00027,7]
[381435944,1756197052465,-151.0,0.00027,7]
[381435945,1756197052474,-151.0,0.00027,7]
[381435946,1756197052483,-372.719028,0.00027,7]
[381435947,1756197052493,-372.719028,0.00027,7]
[381435948,1756197052503,-151.0,0.00027,7]
[381435949,1756197052512,-151.0,0.00027,7]
[381435950,1756197052521,-372.719028,0.00027,7]
[381435951,1756197052531,-151.0,0.00027,7]
[381435952,1756197052541,-372.719028,0.00027,7]
[381435953,1756197052551,-151.0,0.00027,7]
[381435954,1756197052561,-619.559227,0.00027,7]
[381435955,1756197052571,-151.0,0.00027,7]
[381435956,1756197052584,-151.0,0.00027,7]
[381435957,1756197052593,-619.559227,0.00027,7]
[381435958,1756197052603,-151.0,0.00027,7]
[381435959,1756197052613,-619.559227,0.00027,7]
[381435960,1756197052622,-151.0,0.00027,7]
[381435961,1756197052631,-619.559227,0.00027,7]
[381435962,1756197052641,-248.213536,0.00027,7]
[381435963,1756197052651,-4000.0,0.00027,4]
[381435964,1756197052662,-1769751.72544955,0.0002701,2]
[381435965,1756197052672,-12000.0,0.0002701,7]
[381435966,1756197052680,-153.220756,0.0002701,7]
[381435967,1756197052690,-12000.0,0.0002701,7]
[381435968,1756197052699,-151.770442,0.0002701,7]
[381435969,1756197052708,-177.613696,0.0002701,7]
[381435970,1756197052718,-12000.0,0.0002701,7]
[381435971,1756197052727,-177.613696,0.0002701,7]
[381435972,1756197052736,-12000.0,0.0002701,7]
[381435973,1756197052745,-177.613696,0.0002701,7]
[381435974,1756197052754,-151.0,0.0002701,7]
[381435975,1756197052763,-177.613696,0.0002701,7]
[381435976,1756197052773,-151.0,0.0002701,7]
[381435977,1756197052783,-656.785412,0.0002701,7]
[381435978,1756197052792,-656.785412,0.0002701,7]
[381435979,1756197052801,-155.658208,0.0002701,7]
[381435980,1756197052813,-612.369938,0.0002701,7]
[381435981,1756197052822,-656.785412,0.0002701,7]
[381435982,1756197052831,-612.369938,0.0002701,7]
[381435983,1756197052840,-155.658208,0.0002701,7]
[381435984,1756197052850,-151.0,0.0002701,7]
[381435985,1756197052859,-656.785412,0.0002701,7]
[381435986,1756197052868,-155.658208,0.0002701,7]
[381435987,1756197052877,-612.369938,0.0002701,7]
[381435988,1756197052886,-151.0,0.0002701,7]
[381435989,1756197052895,-155.658208,0.0002701,7]
[381435990,1756197052904,-612.369938,0.0002701,7]
[381435991,1756197052914,-151.0,0.0002701,7]
[381435992,1756197052923,-151.0,0.0002701,7]
[381435993,1756197052932,-151.0,0.0002701,7]
[381435994,1756197052941,-151.0,0.0002701,7]
[381435995,1756197052950,-151.0,0.0002701,7]
[381435996,1756197052959,-152.174241,0.0002701,7]
[381435997,1756197052970,-151.0,0.0002701,7]
[381435998,1756197052979,-151.0,0.0002701,7]
[381435999,1756197052988,-151.0,0.0002701,7]
[381436000,1756197052998,-239.474554,0.0002701,7]
[381436001,1756197053007,-239.474554,0.0002701,7]
[381436002,1756197053016,-239.474554,0.0002701,7]
[381436003,1756197053025,-179.573856,0.0002701,7]
[381436004,1756197053034,-239.474554,0.0002701,7]
[381436005,1756197053043,-151.0,0.0002701,7]
[381436006,1756197053052,-179.573856,0.0002701,7]
[381436007,1756197053064,-151.0,0.0002701,7]
[381436008,1756197053073,-460.016274,0.0002701,7]
[381436009,1756197053082,-151.0,0.0002701,7]
[381436010,1756197053091,-179.573856,0.0002701,7]
[381436011,1756197053100,-151.0,0.0002701,7]
[381436012,1756197053110,-460.016274,0.0002701,7]
[381436013,1756197053119,-151.0,0.0002701,7]
[381436014,1756197053129,-179.573856,0.0002701,7]
[381436015,1756197053138,-460.016274,0.0002701,7]
[381436016,1756197053148,-151.0,0.0002701,7]
[381436017,1756197053157,-460.016274,0.0002701,7]
[381436018,1756197053166,-151.0,0.0002701,7]
[381436019,1756197053175,-151.0,0.0002701,7]
[381436020,1756197053185,-1774.242245,0.0002701,7]
[381436021,1756197053195,-151.0,0.0002701,7]
[381436022,1756197053204,-151.0,0.0002701,7]
[381436023,1756197053213,-304.14737,0.0002701,7]
[381436024,1756197053222,-1774.242245,0.0002701,7]
[381436025,1756197053232,-151.0,0.0002701,7]
[381436026,1756197053242,-151.0,0.0002701,7]
[381436027,1756197053251,-1774.242245,0.0002701,7]
[381436028,1756197053260,-304.14737,0.0002701,7]
[381436029,1756197053270,-323.877022,0.0002701,7]
[381436030,1756197053279,-151.0,0.0002701,7]
[381436031,1756197053288,-304.14737,0.0002701,7]
[381436032,1756197053298,-187.5147,0.0002701,7]
[381436033,1756197053307,-323.877022,0.0002701,7]
[381436034,1756197053317,-1774.242245,0.0002701,7]
[381436035,1756197053326,-304.14737,0.0002701,7]
[381436036,1756197053335,-187.5147,0.0002701,7]
[381436037,1756197053344,-323.877022,0.0002701,7]
[381436038,1756197053354,-323.877022,0.0002701,7]
[381436039,1756197053363,-293.876933,0.0002701,7]
[381436040,1756197053375,-187.5147,0.0002701,7]
[381436041,1756197053395,-293.876933,0.0002701,7]
[381436042,1756197053404,-187.5147,0.0002701,7]
[381436043,1756197053414,-293.876933,0.0002701,7]
[381436044,1756197053425,-293.876933,0.0002701,7]
[381436045,1756197053434,-151.0,0.0002701,7]
[381436046,1756197053445,-194.557096,0.0002701,7]
[381436047,1756197053455,-151.0,0.0002701,7]
[381436048,1756197053466,-194.557096,0.0002701,7]
[381436049,1756197053475,-151.0,0.0002701,7]
[381436050,1756197053485,-194.557096,0.0002701,7]
[381436051,1756197053495,-151.0,0.0002701,7]
[381436052,1756197053504,-194.557096,0.0002701,7]
[381436053,1756197053513,-151.0,0.0002701,7]
[381436054,1756197053523,-151.0,0.0002701,7]
[381436055,1756197053532,-151.0,0.0002701,7]
[381436056,1756197053541,-151.0,0.0002701,7]
[381436057,1756197053551,-151.0,0.0002701,7]
[381436058,1756197053561,-151.0,0.0002701,7]
[381436059,1756197053570,-151.0,0.0002701,7]
[381436060,1756197053579,-372.719028,0.0002701,7]
[381436061,1756197053593,-372.719028,0.0002701,7]
[381436062,1756197053602,-151.0,0.0002701,7]
[381436063,1756197053611,-372.719028,0.0002701,7]
[381436064,1756197053620,-151.0,0.0002701,7]
[381436065,1756197053631,-372.719036,0.0002701,7]
[381436066,1756197053640,-619.559227,0.0002701,7]
[381436067,1756197053649,-151.0,0.0002701,7]
[381436068,1756197053659,-223.996932,0.0002701,7]
[381436069,1756197053668,-151.0,0.0002701,7]
[381436070,1756197053678,-619.559227,0.0002701,7]
[381436071,1756197053687,-151.0,0.0002701,7]
[381436072,1756197053696,-619.559227,0.0002701,7]
[381436073,1756197053705,-151.0,0.0002701,7]
[381436074,1756197053714,-619.55923,0.0002701,7]
[381436075,1756197053723,-152.83,0.00027014,2]
[381436076,1756197053732,-771.0,0.00027054,2]
[381436077,1756197053742,-150.0,0.00027082,2]
[381436078,1756197053750,-262.49,0.00027123,4]
[381436079,1756197053759,-2047.31,0.000272,7]
[381436080,1756197053769,-42977.78,0.000272,7]
[381436081,1756197053778,-150.0,0.00027207,2]
[381436082,1756197053787,-1000.0,0.0002723,2]
[381436083,1756197053796,-185.71,0.00027243,2]
[381436084,1756197053805,-1425.0,0.0002726,2]
[381436085,1756197053815,-1057.85,0.000273,2]
[381436086,1756197053825,-715.37,0.000273,7]
[381436087,1756197053834,-1000.0,0.0002731,2]
[381436088,1756197053844,-160.0,0.00027385,7]
[381436089,1756197053853,-769.84,0.00027385,2]
[381436090,1756197053862,-200.3,0.00027385,2]
[381436091,1756197053872,-1000.0,0.00027385,2]
[381436092,1756197053881,-3600.18,0.00027385,2]
[381436093,1756197053890,-200.0,0.00027385,2]
[381436094,1756197053899,-4018.18860089,0.0002739,2]
[381436095,1756197053908,-7937.37838155,0.0002739,2]
[381436096,1756197053917,-3168.78360926,0.0002739,2]
[381436097,1756197053926,-150.0,0.0002739,2]
[381436098,1756197053935,-1600.0,0.00027394,7]
[381436099,1756197053945,-3000.0,0.00027394,7]
[381436100,1756197053954,-832.55108079,0.00027397,2]
[381436101,1756197053964,-700.0,0.00027397,2]
[381436102,1756197053973,-1500.0,0.00027397,16]
[381436103,1756197053983,-507.08,0.00027397,2]
[381436104,1756197053994,-451.04,0.00027397,80]
[381436105,1756197054003,-18591.98,0.00027397,2]
[381436106,1756197054012,-300.0,0.00027397,2]
[381436107,1756197054022,-155.9612237,0.00027397,5]
[381436108,1756197054032,-200.0,0.00027397,5]
[381436109,1756197054042,-155.05657824,0.00027397,5]
[381436110,1756197054052,-771.0,0.00027464,2]
[381436111,1756197054062,-2638.872,0.00027486,16]
[381436112,1756197054072,-212.043,0.00027486,16]
[381436113,1756197054081,-196.60249995,0.000275,2]
[381436114,1756197054091,-536.98561318,0.000275,2]
[381436115,1756197054102,-720.96035142,0.000275,12]
[381436116,1756197054112,-1000.0,0.00027521,5]
[381436117,1756197054122,-160.98716023,0.00027521,5]
[381436118,1756197054132,-150.0,0.00027598,2]
[381436119,1756197054142,-771.0,0.00027636,2]
[381436120,1756197054152,-340.46,0.00027651,2]
[381436121,1756197054162,-462.54732795,0.0002766,2]
[381436122,1756197054172,-213.0,0.0002767,2]
[381436123,1756197054183,-319.0,0.0002767,2]
[381436124,1756197054195,-693.0,0.00027671,14]
[381436125,1756197054204,-2000.0,0.00027686,2]
[381436126,1756197054215,-33131.04418591,0.00027687,8]
[381436127,1756197054225,-241.0,0.000277,2]
[381436128,1756197054234,-510.0,0.000277,2]
[381436129,1756197054243,-381.0,0.000277,2]
[381436130,1756197054253,-778.0,0.000277,2]
[381436131,1756197054262,-771.0,0.00027756,2]
[381436132,1756197054271,-1000.0,0.00027766,2]
[381436133,1756197054280,-491.80451806,0.00027781,2]
[381436134,1756197054289,-373.07297731,0.00027796,2]
[381436135,1756197054298,-298.26089446,0.00027796,2]
[381436136,1756197054309,-500.0,0.00027796,2]
[381436137,1756197054318,-500.0,0.00027796,2]
[381436138,1756197054327,-500.0,0.00027796,2]
[381436139,1756197054336,-500.0,0.00027796,2]
[381436140,1756197054345,-500.0,0.00027796,2]
[381436141,1756197054355,-500.0,0.00027796,2]
[381436142,1756197054365,-500.0,0.00027796,2]
[381436143,1756197054374,-500.0,0.00027796,2]
[381436144,1756197054384,-500.0,0.00027796,2]
[381436145,1756197054393,-500.0,0.00027796,2]
[381436146,1756197054403,-500.0,0.00027796,2]
[381436147,1756197054412,-500.0,0.00027796,2]
[381436148,1756197054422,-500.0,0.00027796,2]
[381436149,1756197054431,-500.0,0.00027796,2]
[381436150,1756197054440,-500.0,0.00027796,2]
[381436151,1756197054449,-500.0,0.00027796,2]
[381436152,1756197054458,-500.0,0.00027796,2]
[381436153,1756197054467,-500.0,0.00027796,2]
[381436154,1756197054476,-515.0,0.00027796,2]
[381436155,1756197054486,-903.0,0.00027796,2]
[381436156,1756197054495,-500.0,0.00027796,2]
[381436157,1756197054505,-500.0,0.00027796,2]
[381436158,1756197054515,-500.0,0.00027796,2]
[381436159,1756197054524,-500.0,0.00027796,2]
[381436160,1756197054534,-500.0,0.00027796,2]
[381436161,1756197054544,-500.0,0.00027796,2]
[381436162,1756197054558,-500.0,0.00027796,2]
[381436163,1756197054567,-661.0,0.00027796,2]
[381436164,1756197054576,-500.0,0.00027796,2]
[381436165,1756197054587,-500.0,0.00027796,2]
[381436166,1756197054599,-500.0,0.00027796,2]
[381436167,1756197054609,-500.0,0.00027796,2]
[381436168,1756197054618,-500.0,0.00027796,2]
[381436169,1756197054627,-500.0,0.00027796,2]
[381436170,1756197054637,-500.0,0.00027796,2]
[381436171,1756197054646,-500.0,0.00027796,2]
[381436172,1756197054655,-500.0,0.00027796,2]
[381436173,1756197054665,-500.0,0.00027796,2]
[381436174,1756197054675,-500.0,0.00027796,2]
[381436175,1756197054684,-500.0,0.00027796,2]
[381436176,1756197054694,-500.0,0.00027796,2]
[381436177,1756197054703,-500.0,0.00027796,2]
[381436178,1756197054712,-500.0,0.00027796,2]
[381436179,1756197054722,-500.0,0.00027796,2]
[381436180,1756197054731,-500.0,0.00027796,2]
[381436181,1756197054742,-500.0,0.00027796,2]
[381436182,1756197054752,-500.0,0.00027796,2]
[381436183,1756197054761,-500.0,0.00027796,2]
[381436184,1756197054772,-500.0,0.00027796,2]
[381436185,1756197054782,-500.0,0.00027796,2]
[381436186,1756197054792,-500.0,0.00027796,2]
[381436187,1756197054801,-500.0,0.00027796,2]
[381436188,1756197054811,-500.0,0.00027796,2]
[381436189,1756197054821,-500.0,0.00027796,2]
[381436190,1756197054832,-500.0,0.00027796,2]
[381436191,1756197054842,-500.0,0.00027796,2]
[381436192,1756197054852,-500.0,0.00027796,2]
[381436193,1756197054862,-500.0,0.00027796,2]
[381436194,1756197054872,-500.0,0.00027796,2]
[381436195,1756197054885,-500.0,0.00027796,2]
[381436196,1756197054895,-500.0,0.00027796,2]
[381436197,1756197054904,-500.0,0.00027796,2]
[381436198,1756197054913,-529.0,0.00027796,2]
[381436199,1756197054922,-550.0,0.00027796,2]
[381436200,1756197054932,-500.0,0.00027796,2]
[381436201,1756197054941,-500.0,0.00027796,2]
[381436202,1756197054950,-500.0,0.00027796,2]
[381436203,1756197054960,-500.0,0.00027796,2]
[381436204,1756197054970,-500.0,0.00027796,2]
[381436205,1756197054980,-500.0,0.00027796,2]
[381436206,1756197054990,-500.0,0.00027796,2]
[381436207,1756197055000,-500.0,0.00027796,2]
[381436208,1756197055011,-500.0,0.00027796,2]
[381436209,1756197055021,-500.0,0.00027796,2]
[381436210,1756197055030,-500.0,0.00027796,2]
[381436211,1756197055039,-500.0,0.00027796,2]
[381436212,1756197055048,-500.0,0.00027796,2]
[381436213,1756197055058,-500.0,0.00027796,2]
[381436214,1756197055067,-500.0,0.00027796,2]
[381436215,1756197055077,-500.0,0.00027796,2]
[381436216,1756197055087,-500.0,0.00027796,2]
[381436217,1756197055097,-500.0,0.00027796,2]
[381436218,1756197055107,-500.0,0.00027796,2]
[381436219,1756197055116,-500.0,0.00027796,2]
[381436220,1756197055125,-500.0,0.00027796,2]
[381436221,1756197055134,-500.0,0.00027796,2]
[381436222,1756197055143,-500.0,0.00027796,2]
[381436223,1756197055152,-500.0,0.00027796,2]
[381436224,1756197055162,-500.0,0.00027796,2]
[381436225,1756197055172,-500.0,0.00027796,2]
[381436226,1756197055183,-500.0,0.00027796,2]
[381436227,1756197055193,-500.0,0.00027796,2]
[381436228,1756197055203,-500.0,0.00027796,2]
[381436229,1756197055213,-500.0,0.00027796,2]
[381436230,1756197055223,-500.0,0.00027796,2]
[381436231,1756197055232,-500.0,0.00027796,2]
[381436232,1756197055242,-500.0,0.00027796,2]
[381436233,1756197055252,-500.0,0.00027796,2]
[381436234,1756197055261,-500.0,0.00027796,2]
[381436235,1756197055270,-500.0,0.00027796,2]
[381436236,1756197055279,-500.0,0.00027796,2]
[381436237,1756197055288,-500.0,0.00027796,2]
[381436238,1756197055297,-500.0,0.00027796,2]
[381436239,1756197055307,-500.0,0.00027796,2]
[381436240,1756197055318,-500.0,0.00027796,2]
[381436241,1756197055328,-500.0,0.00027796,2]
[381436242,1756197055337,-500.0,0.00027796,2]
[381436243,1756197055346,-500.0,0.00027796,2]
[381436244,1756197055355,-500.0,0.00027796,2]
[381436245,1756197055366,-500.0,0.00027796,2]
[381436246,1756197055376,-500.0,0.00027796,2]
[381436247,1756197055385,-500.0,0.00027796,2]
[381436248,1756197055394,-500.0,0.00027796,2]
[381436249,1756197055404,-500.0,0.00027796,2]
[381436250,1756197055413,-150.0,0.00027816,2]
[381436251,1756197055423,-1000.0,0.00027822,2]
[381436252,1756197055432,-300.0,0.00027847,2]
[381436253,1756197055441,-6294.58211479,0.00027852,2]
[381436254,1756197055450,-174.52065844,0.00027858,5]
[381436255,1756197055459,-157248.4265851,0.00027859,2]
[381436256,1756197055468,-141858.58269892,0.000279,3]
[381436257,1756197055478,-771.0,0.00027911,7]
[381436258,1756197055488,-21033.37345563,0.00027916,2]
[381436259,1756197055497,-771.0,0.0002794,2]
[381436260,1756197055506,-1900.0,0.00027942,7]
[381436261,1756197055515,-693.0,0.00027945,14]
[381436262,1756197055525,-1000.0,0.00027997,2]
[381436263,1756197055534,-279.1,0.00028,2]
[381436264,1756197055543,-300.0,0.00028,2]
[381436265,1756197055552,-160.0,0.00028,2]
[381436266,1756197055565,-300.0,0.00028,2]
[381436267,1756197055574,-399.48,0.00028,7]
[381436268,1756197055585,-631.15,0.00028,7]
[381436269,1756197055595,-4000.0,0.00028,4]
[381436270,1756197055604,-3231.33,0.00028,7]
[381436271,1756197055614,-462.54732795,0.00028042,2]
[381436272,1756197055623,-1500.0,0.00028068,5]
[381436273,1756197055634,-43271.6363842,0.00028103,2]
[381436274,1756197055643,-1354.11304268,0.00028129,2]
[381436275,1756197055653,-2975.6727,0.0002814,2]
[381436276,1756197055663,-1194.15178,0.0002814,2]
[381436277,1756197055673,-150.0,0.00028142,2]
[381436278,1756197055684,-1000.0,0.0002815,2]
[381436279,1756197055694,-2047.31,0.000282,7]
[381436280,1756197055703,-42977.78,0.000282,7]
[381436281,1756197055714,-1600.0,0.00028216,7]
[381436282,1756197055724,-3000.0,0.00028216,7]
[381436283,1756197055733,-693.0,0.00028219,14]
[381436284,1756197055742,-771.0,0.00028228,2]
[381436285,1756197055752,-503.0,0.00028232,4]
[381436286,1756197055762,-1500.0,0.00028284,2]
[381436287,1756197055771,-715.37,0.000283,7]
[381436288,1756197055782,-771.0,0.00028325,2]
[381436289,1756197055792,-169.57391605,0.00028326,30]
[381436290,1756197055803,-3755.00759352,0.00028326,30]
[381436291,1756197055817,-171.03733856,0.00028326,30]
[381436292,1756197055826,-1249.60809719,0.00028326,30]
[381436293,1756197055835,-500.0,0.0002837,2]
[381436294,1756197055845,-1000.0,0.0002837,2]
[381436295,1756197055854,-151.0,0.00028373,3]
[381436296,1756197055863,-156.587,0.00028373,3]
[381436297,1756197055872,-162.380719,0.00028373,3]
[381436298,1756197055881,-168.3888056,0.00028373,3]
[381436299,1756197055890,-174.61919141,0.00028373,3]
[381436300,1756197055900,-181.08010149,0.00028373,3]
[381436301,1756197055909,-187.78006525,0.00028373,3]
[381436302,1756197055918,-194.72792766,0.00028373,3]
[381436303,1756197055928,-201.93286099,0.00028373,3]
[381436304,1756197055936,-307.70586875,0.00028373,3]
[381436305,1756197055945,-33131.04418591,0.00028384,9]
[381436306,1756197055955,-771.0,0.00028388,2]
[381436307,1756197055964,-200.0,0.000284,2]
[381436308,1756197055973,-771.0,0.00028416,2]
[381436309,1756197055983,-571.1871664,0.0002842,2]
[381436310,1756197055992,-200.0,0.0002842,2]
[381436311,1756197056002,-1221.0,0.0002842,3]
[381436312,1756197056012,-154.0,0.0002842,3]
[381436313,1756197056022,-1221.0,0.0002842,3]
[381436314,1756197056031,-154.0,0.0002842,3]
[381436315,1756197056040,-1221.0,0.0002842,3]
[381436316,1756197056050,-154.0,0.0002842,3]
[381436317,1756197056060,-1221.0,0.0002842,3]
[381436318,1756197056070,-154.0,0.0002842,3]
[381436319,1756197056079,-1221.0,0.0002842,3]
[381436320,1756197056089,-154.0,0.0002842,3]
[381436321,1756197056098,-1221.0,0.0002842,3]
[381436322,1756197056108,-154.0,0.0002842,3]
[381436323,1756197056117,-1221.0,0.0002842,3]
[381436324,1756197056126,-222.91438574,0.0002842,3]
[381436325,1756197056135,-1221.0,0.0002842,3]
[381436326,1756197056145,-152.0,0.0002842,3]
[381436327,1756197056155,-151.0,0.0002842,3]
[381436328,1756197056164,-152.0,0.0002842,3]
[381436329,1756197056175,-151.0,0.0002842,3]
[381436330,1756197056184,-1221.0,0.0002842,3]
[381436331,1756197056194,-152.0,0.0002842,3]
[381436332,1756197056203,-151.0,0.0002842,3]
[381436333,1756197056213,-1221.0,0.0002842,3]
[381436334,1756197056222,-152.0,0.0002842,3]
[381436335,1756197056232,-151.0,0.0002842,3]
[381436336,1756197056243,-1221.0,0.0002842,3]
[381436337,1756197056389,-152.0,0.0002842,3]
[381436338,1756197056400,-1221.0,0.0002842,3]
[381436339,1756197056410,-152.0,0.0002842,3]
[381436340,1756197056420,-151.0,0.0002842,3]
[381436341,1756197056430,-1221.0,0.0002842,3]
[381436342,1756197056441,-152.0,0.0002842,3]
[381436343,1756197056451,-151.0,0.0002842,3]
[381436344,1756197056461,-1221.0,0.0002842,3]
[381436345,1756197056470,-152.0,0.0002842,3]
[381436346,1756197056480,-1221.0,0.0002842,3]
[381436347,1756197056489,-151.0,0.0002842,3]
[381436348,1756197056499,-151.0,0.0002842,3]
[381436349,1756197056511,-151.0,0.0002842,3]
[381436350,1756197056520,-151.0,0.0002842,2]
[381436351,1756197056529,-152.0,0.0002842,3]
[381436352,1756197056539,-152.0,0.0002842,3]
[381436353,1756197056548,-152.0,0.0002842,3]
[381436354,1756197056559,-152.0,0.0002842,3]
[381436355,1756197056569,-152.0,0.0002842,3]
[381436356,1756197056579,-152.0,0.0002842,3]
[381436357,1756197056593,-152.0,0.0002842,3]
[381436358,1756197056603,-152.0,0.0002842,3]
[381436359,1756197056613,-152.0,0.0002842,3]
[381436360,1756197056623,-152.0,0.0002842,3]
[381436361,1756197056632,-152.0,0.0002842,3]
[381436362,1756197056642,-152.0,0.0002842,3]
[381436363,1756197056651,-152.0,0.0002842,3]
[381436364,1756197056662,-152.0,0.0002842,3]
[381436365,1756197056672,-152.0,0.0002842,3]
[381436366,1756197056682,-152.0,0.0002842,3]
[381436367,1756197056691,-152.0,0.0002842,3]
[381436368,1756197056701,-152.0,0.0002842,3]